[Event "Early-Titled-Tuesday-Blitz-April-23-2024"]
[Site "Chess.com"]
[Date "2024.04.23"]
[Round "9"]
[White "Nikita_Klepikov"]
[Black "DeArron_Fox"]
[Result "0-1"]
[WhiteElo "2345"]
[BlackElo "2513"]
[TimeControl "180+1"]
[EndTime "9:50:02 PDT"]
[Termination "DeArron_Fox won by resignation"]

1. e4 {[%clk 0:03:00.9]} 1... c5 {[%clk 0:02:51.7]} 2. Nf3 {[%clk 0:02:59.6]}
2... e6 {[%clk 0:02:52.1]} 3. d3 {[%clk 0:02:59.5]} 3... d5 {[%clk 0:02:50.5]}
4. Nbd2 {[%clk 0:02:59.1]} 4... Nc6 {[%clk 0:02:50.5]} 5. g3 {[%clk 0:02:59.4]}
5... Nf6 {[%clk 0:02:51]} 6. Bg2 {[%clk 0:02:59.8]} 6... Be7 {[%clk 0:02:51.4]}
7. O-O {[%clk 0:03:00.2]} 7... O-O {[%clk 0:02:51.5]} 8. Re1 {[%clk 0:03:00.7]}
8... Qc7 {[%clk 0:02:50.5]} 9. c3 {[%clk 0:02:52.7]} 9... b5 {[%clk 0:02:46.6]}
10. e5 {[%clk 0:02:46.6]} 10... Nd7 {[%clk 0:02:46.1]} 11. Qe2 {[%clk
0:02:45.8]} 11... a5 {[%clk 0:02:46.4]} 12. Nf1 {[%clk 0:02:45.8]} 12... b4
{[%clk 0:02:45.4]} 13. h4 {[%clk 0:02:44.5]} 13... Ba6 {[%clk 0:02:45.8]} 14.
N1h2 {[%clk 0:02:42.1]} 14... a4 {[%clk 0:02:09.4]} 15. a3 {[%clk 0:02:41.2]}
15... bxc3 {[%clk 0:01:48.5]} 16. bxc3 {[%clk 0:02:40.9]} 16... Na5 {[%clk
0:01:48.5]} 17. Bf4 {[%clk 0:02:05.7]} 17... Nb3 {[%clk 0:01:45.3]} 18. Rab1
{[%clk 0:02:04]} 18... Rfb8 {[%clk 0:01:07.4]} 19. Ng4 {[%clk 0:01:49.2]} 19...
Bf8 {[%clk 0:00:54.1]} 20. h5 {[%clk 0:01:34.7]} 20... h6 {[%clk 0:00:53.1]} 21.
Qe3 {[%clk 0:01:25.1]} 21... Kh7 {[%clk 0:00:48.1]} 22. Bf1 {[%clk 0:01:06.4]}
22... Na5 {[%clk 0:00:27.1]} 23. Be2 {[%clk 0:01:03.9]} 23... Rxb1 {[%clk
0:00:24.6]} 24. Rxb1 {[%clk 0:01:03.3]} 24... Rb8 {[%clk 0:00:25.5]} 25. Rxb8
{[%clk 0:00:30.9]} 25... Qxb8 {[%clk 0:00:26.4]} 26. Bd1 {[%clk 0:00:30.1]}
26... Qb1 {[%clk 0:00:24.6]} 27. Qe2 {[%clk 0:00:15.6]} 27... Bxd3 {[%clk
0:00:20.7]} 28. Qe1 {[%clk 0:00:11.3]} 28... Nb3 {[%clk 0:00:12.3]} 29. Nd2
{[%clk 0:00:09.1]} 29... Nxd2 {[%clk 0:00:11.2]} 30. Qxd2 {[%clk 0:00:09.5]}
30... Nb6 {[%clk 0:00:08.7]} 31. Ne3 {[%clk 0:00:09.6]} 31... d4 {[%clk
0:00:03.8]} 32. cxd4 {[%clk 0:00:08.4]} 32... cxd4 {[%clk 0:00:04.7]} 33. Nf1
{[%clk 0:00:06]} 33... Nc4 {[%clk 0:00:03.8]} 34. Qc1 {[%clk 0:00:04.3]} 34...
Qxc1 {[%clk 0:00:03.7]} 35. Bxc1 {[%clk 0:00:05.2]} 35... Bxa3 {[%clk
0:00:02.5]} 36. Bxa3 {[%clk 0:00:04.8]} 36... Nxa3 {[%clk 0:00:03.4]} 37. Bxa4
{[%clk 0:00:05.4]} 37... Nc4 {[%clk 0:00:02.9]} 38. Be8 {[%clk 0:00:05.7]} 38...
Nxe5 {[%clk 0:00:02.5]} 39. f4 {[%clk 0:00:04.9]} 39... Bxf1 {[%clk 0:00:02.3]}
40. Kxf1 {[%clk 0:00:05]} 40... Nd3 {[%clk 0:00:01.6]} 41. Bxf7 {[%clk
0:00:05.4]} 41... Nc5 {[%clk 0:00:01.8]} 42. Bg6+ {[%clk 0:00:05.9]} 42... Kg8
{[%clk 0:00:02.1]} 43. Kf2 {[%clk 0:00:06.6]} 43... Kf8 {[%clk 0:00:02.8]} 44.
Kf3 {[%clk 0:00:07.2]} 44... Ke7 {[%clk 0:00:03.4]} 45. g4 {[%clk 0:00:07.8]}
45... Kf6 {[%clk 0:00:02.7]} 46. Bc2 {[%clk 0:00:06.2]} 46... e5 {[%clk
0:00:03]} 47. fxe5+ {[%clk 0:00:03.4]} 47... Kxe5 {[%clk 0:00:03.9]} 48. Bg6
{[%clk 0:00:03.9]} 48... d3 {[%clk 0:00:03.5]} 49. Ke3 {[%clk 0:00:03.3]} 49...
Kf6 {[%clk 0:00:03.7]} 50. Bxd3 {[%clk 0:00:03.2]} 50... Nxd3 {[%clk 0:00:03.6]}
51. Kxd3 {[%clk 0:00:04.1]} 51... Kg5 {[%clk 0:00:04.3]} 52. Ke3 {[%clk
0:00:04.6]} 52... Kxg4 {[%clk 0:00:05.2]} 53. Kf2 {[%clk 0:00:05.3]} 53... Kxh5
{[%clk 0:00:06.1]} 54. Kg2 {[%clk 0:00:06]} 54... Kg5 {[%clk 0:00:06.7]} 55. Kh2
{[%clk 0:00:06.9]} 55... h5 {[%clk 0:00:07.6]} 56. Kg1 {[%clk 0:00:07.8]} 56...
h4 {[%clk 0:00:08.5]} 57. Kh1 {[%clk 0:00:08.7]} 57... Kh5 {[%clk 0:00:09.4]}
0-1

[Event "Early-Titled-Tuesday-Blitz-April-23-2024"]
[Site "Chess.com"]
[Date "2024.04.23"]
[Round "9"]
[White "hmatyi07"]
[Black "NigiriSushies"]
[Result "0-1"]
[WhiteElo "2305"]
[BlackElo "2443"]
[TimeControl "180+1"]
[EndTime "9:50:02 PDT"]
[Termination "NigiriSushies won by resignation"]

1. e4 {[%clk 0:02:56.4]} 1... c6 {[%clk 0:02:56.8]} 2. c4 {[%clk 0:02:55.1]}
2... d5 {[%clk 0:02:56.6]} 3. cxd5 {[%clk 0:02:52.6]} 3... cxd5 {[%clk
0:02:57.5]} 4. exd5 {[%clk 0:02:53.3]} 4... Nf6 {[%clk 0:02:57.5]} 5. Qa4+
{[%clk 0:02:53.4]} 5... Bd7 {[%clk 0:02:53.2]} 6. Qb3 {[%clk 0:02:53.1]} 6...
Qb6 {[%clk 0:02:39.7]} 7. Nc3 {[%clk 0:02:37.1]} 7... Na6 {[%clk 0:02:26.6]} 8.
Bb5 {[%clk 0:02:03.6]} 8... Nc5 {[%clk 0:02:21]} 9. Bxd7+ {[%clk 0:02:02.5]}
9... Ncxd7 {[%clk 0:02:21.9]} 10. Qa4 {[%clk 0:02:00.3]} 10... Qd6 {[%clk
0:02:17.1]} 11. Nf3 {[%clk 0:01:37.5]} 11... Nxd5 {[%clk 0:02:14.7]} 12. O-O
{[%clk 0:01:34.9]} 12... e6 {[%clk 0:02:14.7]} 13. Nb5 {[%clk 0:01:31.3]} 13...
Qb6 {[%clk 0:02:14.6]} 14. Ne5 {[%clk 0:01:22.2]} 14... Nxe5 {[%clk 0:01:39.1]}
15. Nc7+ {[%clk 0:01:19.5]} 15... Kd8 {[%clk 0:01:38.9]} 16. Nxa8 {[%clk
0:01:18.3]} 16... Qa6 {[%clk 0:01:39.1]} 17. Qe4 {[%clk 0:01:02.3]} 17... Bd6
{[%clk 0:01:33.2]} 18. d4 {[%clk 0:01:00.8]} 18... Ng6 {[%clk 0:01:21.6]} 19. h4
{[%clk 0:00:37]} 19... Ke7 {[%clk 0:01:11.4]} 20. h5 {[%clk 0:00:37]} 20... Ngf4
{[%clk 0:01:10.8]} 21. Bxf4 {[%clk 0:00:34.6]} 21... Bxf4 {[%clk 0:01:07.1]} 22.
Rfe1 {[%clk 0:00:30.2]} 22... Qd6 {[%clk 0:00:58.9]} 23. Nc7 {[%clk 0:00:28.5]}
23... Nxc7 {[%clk 0:00:55.9]} 24. g3 {[%clk 0:00:24.9]} 24... Bg5 {[%clk
0:00:52.7]} 25. Qxb7 {[%clk 0:00:24.8]} 25... Bf6 {[%clk 0:00:52.4]} 26. Rac1
{[%clk 0:00:24.5]} 26... Kd7 {[%clk 0:00:49.6]} 27. Red1 {[%clk 0:00:20.6]}
27... Qb6 {[%clk 0:00:25.9]} 28. Qe4 {[%clk 0:00:16.9]} 28... Nd5 {[%clk
0:00:25.3]} 29. Rc5 {[%clk 0:00:16.1]} 29... Rc8 {[%clk 0:00:22.5]} 30. Rxc8
{[%clk 0:00:15.5]} 30... Kxc8 {[%clk 0:00:23.4]} 31. Rc1+ {[%clk 0:00:16]} 31...
Kd7 {[%clk 0:00:23.5]} 32. Qc2 {[%clk 0:00:16.1]} 32... Bxd4 {[%clk 0:00:19]}
33. Qc8+ {[%clk 0:00:16.6]} 33... Ke7 {[%clk 0:00:18.9]} 34. Kg2 {[%clk
0:00:17.2]} 34... Bxf2 {[%clk 0:00:17]} 35. Kh2 {[%clk 0:00:09.6]} 35... Be3
{[%clk 0:00:15.3]} 36. Rf1 {[%clk 0:00:08.9]} 36... Qxb2+ {[%clk 0:00:15.3]} 37.
Kh3 {[%clk 0:00:08.6]} 37... Qb6 {[%clk 0:00:07.3]} 38. Qc2 {[%clk 0:00:08.9]}
38... g6 {[%clk 0:00:06.8]} 39. hxg6 {[%clk 0:00:08.5]} 39... hxg6 {[%clk
0:00:07.7]} 40. Qe2 {[%clk 0:00:08.4]} 40... Qb8 {[%clk 0:00:07]} 41. Qg4 {[%clk
0:00:08.1]} 41... Qh8+ {[%clk 0:00:07.1]} 42. Kg2 {[%clk 0:00:08.1]} 42... Qb2+
{[%clk 0:00:07.1]} 43. Kh3 {[%clk 0:00:07.9]} 43... Nf6 {[%clk 0:00:07.3]} 44.
Qf3 {[%clk 0:00:08]} 44... Qe5 {[%clk 0:00:06.8]} 45. Kg2 {[%clk 0:00:07.8]}
45... Qd5 {[%clk 0:00:06.5]} 46. Qxd5 {[%clk 0:00:07.3]} 46... Nxd5 {[%clk
0:00:07.4]} 47. Rb1 {[%clk 0:00:07.4]} 47... f5 {[%clk 0:00:06.3]} 48. Rb7+
{[%clk 0:00:08]} 48... Kf6 {[%clk 0:00:06.8]} 49. Rxa7 {[%clk 0:00:08.5]} 49...
Bxa7 {[%clk 0:00:06.9]} 50. Kf3 {[%clk 0:00:08.4]} 50... e5 {[%clk 0:00:06.9]}
51. Ke2 {[%clk 0:00:08.9]} 51... e4 {[%clk 0:00:07.8]} 52. Kd2 {[%clk
0:00:08.8]} 52... e3+ {[%clk 0:00:08.7]} 53. Ke2 {[%clk 0:00:09.7]} 53... Nc3+
{[%clk 0:00:08.9]} 54. Kf3 {[%clk 0:00:10.5]} 54... e2 {[%clk 0:00:09.6]} 55. g4
{[%clk 0:00:09.3]} 55... e1=N+ {[%clk 0:00:09.2]} 0-1

[Event "Early-Titled-Tuesday-Blitz-April-23-2024"]
[Site "Chess.com"]
[Date "2024.04.23"]
[Round "9"]
[White "SpeedofLight0"]
[Black "Rud_Makarian"]
[Result "0-1"]
[WhiteElo "3077"]
[BlackElo "3040"]
[TimeControl "180+1"]
[EndTime "9:50:03 PDT"]
[Termination "Rud_Makarian won by resignation"]

1. d4 {[%clk 0:03:00.9]} 1... Nf6 {[%clk 0:03:00.4]} 2. Nc3 {[%clk 0:03:01]}
2... d6 {[%clk 0:02:59.6]} 3. e4 {[%clk 0:03:00.9]} 3... e5 {[%clk 0:03:00.5]}
4. Nf3 {[%clk 0:03:01.3]} 4... Nbd7 {[%clk 0:03:00.6]} 5. Bc4 {[%clk 0:03:02]}
5... Be7 {[%clk 0:03:01.4]} 6. O-O {[%clk 0:03:02.4]} 6... O-O {[%clk
0:03:01.9]} 7. Re1 {[%clk 0:03:03]} 7... c6 {[%clk 0:03:02.8]} 8. a4 {[%clk
0:03:03.3]} 8... exd4 {[%clk 0:03:03.4]} 9. Nxd4 {[%clk 0:03:03.3]} 9... Ne5
{[%clk 0:03:04.2]} 10. Bf1 {[%clk 0:03:01.3]} 10... Re8 {[%clk 0:03:04.2]} 11.
h3 {[%clk 0:03:01]} 11... Ng6 {[%clk 0:03:04.1]} 12. Be3 {[%clk 0:02:59.8]}
12... Bf8 {[%clk 0:03:01.9]} 13. a5 {[%clk 0:02:58.1]} 13... Nxe4 {[%clk
0:02:56.2]} 14. Nxe4 {[%clk 0:02:49.2]} 14... Rxe4 {[%clk 0:02:56.9]} 15. a6
{[%clk 0:02:29.1]} 15... d5 {[%clk 0:02:52.8]} 16. axb7 {[%clk 0:02:17.9]} 16...
Bxb7 {[%clk 0:02:53.6]} 17. Nb3 {[%clk 0:02:18.4]} 17... a5 {[%clk 0:02:44]} 18.
Bd4 {[%clk 0:02:15.7]} 18... Rxe1 {[%clk 0:02:37.4]} 19. Qxe1 {[%clk 0:02:16.6]}
19... a4 {[%clk 0:02:25.5]} 20. Nc5 {[%clk 0:02:16.4]} 20... Bxc5 {[%clk
0:02:09.2]} 21. Bxc5 {[%clk 0:02:17.3]} 21... Ba6 {[%clk 0:02:09.1]} 22. Bxa6
{[%clk 0:01:34.5]} 22... Rxa6 {[%clk 0:02:09.8]} 23. b3 {[%clk 0:01:34.8]} 23...
a3 {[%clk 0:02:00.2]} 24. Rxa3 {[%clk 0:01:34.2]} 24... Rxa3 {[%clk 0:02:00.1]}
25. Bxa3 {[%clk 0:01:35.1]} 25... Nf4 {[%clk 0:01:57.9]} 26. Qe5 {[%clk
0:01:29.8]} 26... Ne6 {[%clk 0:01:55.3]} 27. Bb2 {[%clk 0:01:27]} 27... h6
{[%clk 0:01:55.2]} 28. f4 {[%clk 0:01:24.4]} 28... Qf8 {[%clk 0:01:18.6]} 29. f5
{[%clk 0:01:15.9]} 29... Ng5 {[%clk 0:01:18.3]} 30. f6 {[%clk 0:01:16]} 30... g6
{[%clk 0:01:01.6]} 31. Bc1 {[%clk 0:01:12.4]} 31... Ne6 {[%clk 0:00:57.1]} 32.
Be3 {[%clk 0:01:11.7]} 32... Kh7 {[%clk 0:00:56.1]} 33. Qc3 {[%clk 0:00:57.7]}
33... Qd6 {[%clk 0:00:54]} 34. Bd2 {[%clk 0:00:35.4]} 34... c5 {[%clk
0:00:48.5]} 35. Qd3 {[%clk 0:00:34.2]} 35... Qe5 {[%clk 0:00:46.4]} 36. Qf3
{[%clk 0:00:26]} 36... h5 {[%clk 0:00:35.2]} 37. c3 {[%clk 0:00:23.3]} 37... d4
{[%clk 0:00:19.5]} 38. Kf1 {[%clk 0:00:23.7]} 38... dxc3 {[%clk 0:00:18.4]} 39.
Bxc3 {[%clk 0:00:24.6]} 39... Qg5 {[%clk 0:00:16.2]} 40. Qb7 {[%clk 0:00:13.7]}
40... Qc1+ {[%clk 0:00:13.7]} 41. Ke2 {[%clk 0:00:12.4]} 41... Qc2+ {[%clk
0:00:13.2]} 42. Kf1 {[%clk 0:00:11.3]} 42... Ng5 {[%clk 0:00:08.5]} 43. Be1
{[%clk 0:00:06.1]} 43... Qf5+ {[%clk 0:00:08.5]} 44. Bf2 {[%clk 0:00:03.5]}
44... Qxf6 {[%clk 0:00:07]} 45. Kg1 {[%clk 0:00:03.8]} 45... Qa1+ {[%clk
0:00:05.9]} 46. Kh2 {[%clk 0:00:03.7]} 46... Qe5+ {[%clk 0:00:06.4]} 47. Kg1
{[%clk 0:00:04]} 47... Kg7 {[%clk 0:00:05]} 48. Qb6 {[%clk 0:00:02.3]} 48... Ne4
{[%clk 0:00:04.7]} 49. b4 {[%clk 0:00:01.7]} 49... Qa1+ {[%clk 0:00:04.4]} 50.
Kh2 {[%clk 0:00:01.7]} 50... Nxf2 {[%clk 0:00:04.3]} 51. Qxc5 {[%clk 0:00:02.2]}
51... Qh1+ {[%clk 0:00:04.1]} 52. Kg3 {[%clk 0:00:02.8]} 52... Ne4+ {[%clk
0:00:04.9]} 0-1

[Event "Early-Titled-Tuesday-Blitz-April-23-2024"]
[Site "Chess.com"]
[Date "2024.04.23"]
[Round "9"]
[White "Thunderbolt135"]
[Black "Fandorine"]
[Result "0-1"]
[WhiteElo "2691"]
[BlackElo "2924"]
[TimeControl "180+1"]
[EndTime "9:50:05 PDT"]
[Termination "Fandorine won by resignation"]

1. b3 {[%clk 0:03:00.9]} 1... g6 {[%clk 0:02:57.8]} 2. Bb2 {[%clk 0:03:01.1]}
2... Nf6 {[%clk 0:02:58.7]} 3. Nf3 {[%clk 0:03:01.3]} 3... d5 {[%clk 0:02:57.5]}
4. e3 {[%clk 0:02:59]} 4... Bg7 {[%clk 0:02:56.7]} 5. c4 {[%clk 0:02:56]} 5...
dxc4 {[%clk 0:02:55]} 6. Bxc4 {[%clk 0:02:54]} 6... O-O {[%clk 0:02:55.6]} 7.
O-O {[%clk 0:02:52.9]} 7... c5 {[%clk 0:02:56.3]} 8. d4 {[%clk 0:02:52.8]} 8...
cxd4 {[%clk 0:02:55.6]} 9. Qxd4 {[%clk 0:02:50.4]} 9... Qxd4 {[%clk 0:02:53.5]}
10. Nxd4 {[%clk 0:02:49.1]} 10... Bd7 {[%clk 0:02:54.4]} 11. Nd2 {[%clk
0:02:45]} 11... Nc6 {[%clk 0:02:53.3]} 12. N2f3 {[%clk 0:02:45.5]} 12... Rfd8
{[%clk 0:02:47]} 13. Rfd1 {[%clk 0:02:39.9]} 13... Ne4 {[%clk 0:02:37.9]} 14.
Nxc6 {[%clk 0:01:26.3]} 14... Bxc6 {[%clk 0:02:30.1]} 15. Bxg7 {[%clk
0:01:26.7]} 15... Kxg7 {[%clk 0:02:29]} 16. Ne5 {[%clk 0:01:27.1]} 16... Be8
{[%clk 0:02:27]} 17. f3 {[%clk 0:01:12.4]} 17... Nc3 {[%clk 0:02:05.9]} 18. Rdc1
{[%clk 0:01:11.4]} 18... Nd5 {[%clk 0:02:04.2]} 19. Kf2 {[%clk 0:01:07.8]} 19...
f6 {[%clk 0:01:45.7]} 20. Nd3 {[%clk 0:00:49.6]} 20... Nb6 {[%clk 0:01:34.8]}
21. Ke2 {[%clk 0:00:17.6]} 21... Nxc4 {[%clk 0:01:02.9]} 22. bxc4 {[%clk
0:00:18.5]} 22... Rac8 {[%clk 0:00:58.8]} 23. Rab1 {[%clk 0:00:19.1]} 23... Rc7
{[%clk 0:00:57.7]} 24. Nf4 {[%clk 0:00:19.3]} 24... Bf7 {[%clk 0:00:58.2]} 25.
Nd5 {[%clk 0:00:17.6]} 25... Rcd7 {[%clk 0:00:51.9]} 26. Rd1 {[%clk 0:00:17.2]}
26... b6 {[%clk 0:00:43.1]} 27. e4 {[%clk 0:00:15.8]} 27... Rc8 {[%clk
0:00:31.8]} 28. Rbc1 {[%clk 0:00:11]} 28... Kf8 {[%clk 0:00:26.6]} 29. h4 {[%clk
0:00:08.9]} 29... Rc5 {[%clk 0:00:24.2]} 30. Ne3 {[%clk 0:00:04.5]} 30... Ke8
{[%clk 0:00:23.4]} 31. Rxd7 {[%clk 0:00:04.1]} 31... Kxd7 {[%clk 0:00:24.3]} 32.
Kd3 {[%clk 0:00:05]} 32... h5 {[%clk 0:00:21]} 33. Kd4 {[%clk 0:00:03.5]} 33...
Kd6 {[%clk 0:00:20.4]} 34. g4 {[%clk 0:00:02.9]} 34... Be6 {[%clk 0:00:11.1]}
35. Kd3 {[%clk 0:00:01.9]} 35... Ra5 {[%clk 0:00:10.8]} 36. Rc2 {[%clk
0:00:01.8]} 36... Ra3+ {[%clk 0:00:07.1]} 37. Ke2 {[%clk 0:00:02.5]} 37... hxg4
{[%clk 0:00:05.2]} 38. fxg4 {[%clk 0:00:03.4]} 38... Ke5 {[%clk 0:00:05.5]} 39.
h5 {[%clk 0:00:03.5]} 39... Kxe4 {[%clk 0:00:04.8]} 40. Nf1 {[%clk 0:00:01.5]}
40... Bxg4+ {[%clk 0:00:05]} 41. Kf2 {[%clk 0:00:02.4]} 41... Bxh5 {[%clk
0:00:05.1]} 42. Ng3+ {[%clk 0:00:03.3]} 42... Kd3 {[%clk 0:00:04.8]} 43. Rc1
{[%clk 0:00:03.1]} 43... Rxa2+ {[%clk 0:00:04.5]} 44. Kg1 {[%clk 0:00:03.7]}
44... Kd4 {[%clk 0:00:04.5]} 45. Nf1 {[%clk 0:00:02.4]} 45... Kc5 {[%clk
0:00:04.5]} 46. Ng3 {[%clk 0:00:02.6]} 46... Bf3 {[%clk 0:00:04]} 47. Kf1 {[%clk
0:00:03.3]} 47... e5 {[%clk 0:00:03.9]} 48. Rc3 {[%clk 0:00:03.2]} 48... e4
{[%clk 0:00:03.4]} 49. Rc1 {[%clk 0:00:03.9]} 49... f5 {[%clk 0:00:03.9]} 50.
Nh1 {[%clk 0:00:04.4]} 50... Bxh1 {[%clk 0:00:03.9]} 0-1

[Event "Early-Titled-Tuesday-Blitz-April-23-2024"]
[Site "Chess.com"]
[Date "2024.04.23"]
[Round "9"]
[White "tusplingher"]
[Black "Silvederione"]
[Result "1-0"]
[WhiteElo "2640"]
[BlackElo "2484"]
[TimeControl "180+1"]
[EndTime "9:50:05 PDT"]
[Termination "tusplingher won on time"]

1. e4 {[%clk 0:03:00.9]} 1... c5 {[%clk 0:03:00]} 2. Nf3 {[%clk 0:03:00]} 2...
Nc6 {[%clk 0:03:00.7]} 3. Bc4 {[%clk 0:02:59.6]} 3... e6 {[%clk 0:02:59.5]} 4.
O-O {[%clk 0:02:58.6]} 4... Nf6 {[%clk 0:02:59.6]} 5. Re1 {[%clk 0:02:50.8]}
5... Nxe4 {[%clk 0:02:54.8]} 6. Rxe4 {[%clk 0:02:50.1]} 6... d5 {[%clk
0:02:55.2]} 7. Bxd5 {[%clk 0:02:50.4]} 7... Qxd5 {[%clk 0:02:56.1]} 8. Nc3
{[%clk 0:02:50.9]} 8... Qd8 {[%clk 0:02:48.8]} 9. d4 {[%clk 0:02:50.7]} 9...
cxd4 {[%clk 0:02:37.6]} 10. Nxd4 {[%clk 0:02:50.1]} 10... Be7 {[%clk 0:02:12.7]}
11. Nxc6 {[%clk 0:02:44.9]} 11... Qxd1+ {[%clk 0:02:13.6]} 12. Nxd1 {[%clk
0:02:45.2]} 12... bxc6 {[%clk 0:02:14.3]} 13. Rc4 {[%clk 0:02:43.7]} 13... c5
{[%clk 0:01:48]} 14. Be3 {[%clk 0:02:38.3]} 14... Ba6 {[%clk 0:01:48.3]} 15. Ra4
{[%clk 0:02:34.5]} 15... Bb7 {[%clk 0:01:32.8]} 16. Nc3 {[%clk 0:02:32.4]} 16...
O-O {[%clk 0:01:30.5]} 17. Rd1 {[%clk 0:02:27.8]} 17... Bc6 {[%clk 0:00:44.5]}
18. Rc4 {[%clk 0:02:14.4]} 18... Rfc8 {[%clk 0:00:30.6]} 19. Bxc5 {[%clk
0:02:02.4]} 19... Be8 {[%clk 0:00:28.5]} 20. b4 {[%clk 0:01:47.2]} 20... a5
{[%clk 0:00:28.2]} 21. a3 {[%clk 0:01:23.4]} 21... h6 {[%clk 0:00:24.9]} 22. Ne4
{[%clk 0:01:16.9]} 22... axb4 {[%clk 0:00:19.9]} 23. axb4 {[%clk 0:01:12.2]}
23... Bb5 {[%clk 0:00:19.3]} 24. Rcd4 {[%clk 0:01:08.2]} 24... Be2 {[%clk
0:00:15.1]} 25. Re1 {[%clk 0:00:57.1]} 25... Bf6 {[%clk 0:00:15.2]} 26. Nxf6+
{[%clk 0:00:56.8]} 26... gxf6 {[%clk 0:00:16.1]} 27. h3 {[%clk 0:00:52.7]} 27...
Bb5 {[%clk 0:00:16]} 28. Rg4+ {[%clk 0:00:51.2]} 28... Kh7 {[%clk 0:00:14.1]}
29. Rd4 {[%clk 0:00:47]} 29... e5 {[%clk 0:00:12.6]} 30. Rd6 {[%clk 0:00:46.2]}
30... Kg7 {[%clk 0:00:12.3]} 31. Red1 {[%clk 0:00:42.4]} 31... Ra2 {[%clk
0:00:11.6]} 32. R1d2 {[%clk 0:00:39.7]} 32... Bc4 {[%clk 0:00:10.7]} 33. Kh2
{[%clk 0:00:35.9]} 33... Be6 {[%clk 0:00:10.6]} 34. R6d3 {[%clk 0:00:35.1]}
34... f5 {[%clk 0:00:09.7]} 35. c3 {[%clk 0:00:30]} 35... Ra3 {[%clk 0:00:07.4]}
36. Re3 {[%clk 0:00:24.2]} 36... f6 {[%clk 0:00:06.9]} 37. Rd6 {[%clk
0:00:23.9]} 37... Kf7 {[%clk 0:00:07.4]} 38. Red3 {[%clk 0:00:23.9]} 38... Rb3
{[%clk 0:00:06.4]} 39. Ra6 {[%clk 0:00:23.5]} 39... Bc4 {[%clk 0:00:06]} 40.
Rd7+ {[%clk 0:00:20.8]} 40... Kg6 {[%clk 0:00:06.2]} 41. Raa7 {[%clk 0:00:20.5]}
41... f4 {[%clk 0:00:05.7]} 42. Rg7+ {[%clk 0:00:19.6]} 42... Kf5 {[%clk
0:00:06.1]} 43. g4+ {[%clk 0:00:17.9]} 43... Ke4 {[%clk 0:00:06.3]} 44. Kg2
{[%clk 0:00:17.7]} 44... Rxc3 {[%clk 0:00:04.3]} 45. Rad7 {[%clk 0:00:15.9]}
45... Bd5 {[%clk 0:00:03.7]} 46. Kh2 {[%clk 0:00:15.1]} 46... Rc2 {[%clk
0:00:03.5]} 47. Kg2 {[%clk 0:00:09.7]} 47... Bc6 {[%clk 0:00:02.8]} 48. Rd6
{[%clk 0:00:09.2]} 48... Bd5 {[%clk 0:00:02.2]} 49. Rgd7 {[%clk 0:00:08.8]}
49... Bc6 {[%clk 0:00:01.7]} 50. Ra7 {[%clk 0:00:06.6]} 1-0

[Event "Early-Titled-Tuesday-Blitz-April-23-2024"]
[Site "Chess.com"]
[Date "2024.04.23"]
[Round "9"]
[White "Sasha_Solovev_777"]
[Black "yonaltimur"]
[Result "1-0"]
[WhiteElo "2248"]
[BlackElo "2390"]
[TimeControl "180+1"]
[EndTime "9:50:05 PDT"]
[Termination "Sasha_Solovev_777 won on time"]

1. e4 {[%clk 0:03:00.9]} 1... c5 {[%clk 0:02:53]} 2. Nf3 {[%clk 0:03:00.2]} 2...
d6 {[%clk 0:02:48.6]} 3. d4 {[%clk 0:02:59.7]} 3... cxd4 {[%clk 0:02:49.5]} 4.
Nxd4 {[%clk 0:02:58.5]} 4... Nf6 {[%clk 0:02:50]} 5. Nc3 {[%clk 0:02:58.3]} 5...
a6 {[%clk 0:02:48.7]} 6. f3 {[%clk 0:02:58.5]} 6... e5 {[%clk 0:02:41.3]} 7. Nb3
{[%clk 0:02:58.2]} 7... Be6 {[%clk 0:02:39.8]} 8. Be3 {[%clk 0:02:58.2]} 8...
Be7 {[%clk 0:02:38.8]} 9. Qd2 {[%clk 0:02:57.8]} 9... Nbd7 {[%clk 0:02:35.2]}
10. O-O-O {[%clk 0:02:56.2]} 10... b5 {[%clk 0:02:34.4]} 11. g4 {[%clk
0:02:49.2]} 11... O-O {[%clk 0:02:26.5]} 12. h4 {[%clk 0:02:45.6]} 12... b4
{[%clk 0:02:24.1]} 13. Nd5 {[%clk 0:02:43.7]} 13... Bxd5 {[%clk 0:02:23.8]} 14.
exd5 {[%clk 0:02:44.6]} 14... a5 {[%clk 0:02:23]} 15. h5 {[%clk 0:02:20.6]}
15... a4 {[%clk 0:02:17.9]} 16. Na1 {[%clk 0:02:19.8]} 16... b3 {[%clk
0:01:47.6]} 17. axb3 {[%clk 0:02:10.4]} 17... axb3 {[%clk 0:01:29.8]} 18. Nxb3
{[%clk 0:02:10.2]} 18... Qc7 {[%clk 0:01:28.3]} 19. Qc3 {[%clk 0:02:06.8]} 19...
Qb7 {[%clk 0:01:26.4]} 20. Qc6 {[%clk 0:02:00.3]} 20... Rfb8 {[%clk 0:01:22]}
21. g5 {[%clk 0:01:42.6]} 21... Ne8 {[%clk 0:01:15.2]} 22. Bh3 {[%clk
0:01:23.6]} 22... Nb6 {[%clk 0:01:06.5]} 23. Rhg1 {[%clk 0:00:33]} 23... Qc7
{[%clk 0:00:42.6]} 24. Bxb6 {[%clk 0:00:24.1]} 24... Rxb6 {[%clk 0:00:39.4]} 25.
Qxc7 {[%clk 0:00:21.9]} 25... Nxc7 {[%clk 0:00:39.1]} 26. Bd7 {[%clk 0:00:19.8]}
26... Na6 {[%clk 0:00:32.3]} 27. g6 {[%clk 0:00:15.6]} 27... fxg6 {[%clk
0:00:27.2]} 28. hxg6 {[%clk 0:00:15.9]} 28... h6 {[%clk 0:00:27.7]} 29. Rdf1
{[%clk 0:00:11.3]} 29... Bg5+ {[%clk 0:00:26.7]} 30. Kd1 {[%clk 0:00:10.5]}
30... Nc5 {[%clk 0:00:24.6]} 31. Nxc5 {[%clk 0:00:10.1]} 31... dxc5 {[%clk
0:00:25.5]} 32. Be6+ {[%clk 0:00:09.9]} 32... Kf8 {[%clk 0:00:25.5]} 33. b3
{[%clk 0:00:10.3]} 33... c4 {[%clk 0:00:22.3]} 34. bxc4 {[%clk 0:00:09.6]} 34...
Rb2 {[%clk 0:00:22.2]} 35. f4 {[%clk 0:00:07.5]} 35... Ra1+ {[%clk 0:00:19.5]}
36. Ke2 {[%clk 0:00:07]} 36... Rxf1 {[%clk 0:00:12.6]} 37. Rxf1 {[%clk
0:00:07.3]} 37... Bxf4 {[%clk 0:00:12.5]} 38. Kd3 {[%clk 0:00:07.5]} 38... Ke7
{[%clk 0:00:12.3]} 39. c5 {[%clk 0:00:07.8]} 39... Rb5 {[%clk 0:00:09.8]} 40. c6
{[%clk 0:00:07]} 40... Kd6 {[%clk 0:00:09.3]} 41. c4 {[%clk 0:00:07.4]} 41...
Rb3+ {[%clk 0:00:09.1]} 42. Kc2 {[%clk 0:00:07.6]} 42... Rg3 {[%clk 0:00:07.3]}
43. Ra1 {[%clk 0:00:07.3]} 43... e4 {[%clk 0:00:06]} 44. Ra7 {[%clk 0:00:06.7]}
44... Kc5 {[%clk 0:00:06.1]} 45. c7 {[%clk 0:00:06.1]} 45... Rg2+ {[%clk
0:00:05.9]} 46. Kb3 {[%clk 0:00:05.9]} 1-0